bitfinex/quotes_BTCUSD_20240602
["timestamp","ask_amount","ask_price","bid_price","bid_amount"]
[1717335334635,2.02669519,68004.0,68003.0,0.090527]
[1717335334842,2.15188224,68004.0,68003.0,0.090527]
[1717335335874,2.16949986,68004.0,68003.0,0.090527]
[1717335339378,2.11999986,68004.0,68003.0,0.090527]
[1717335339635,2.16949986,68004.0,68003.0,0.090527]
[1717335340612,2.33463905,68004.0,68003.0,0.090527]
[1717335341846,2.48298491,68004.0,68003.0,0.090527]
[1717335342082,2.33463905,68004.0,68003.0,0.090527]
[1717335342506,2.48298491,68004.0,68003.0,0.090527]
[1717335345476,2.33463905,68004.0,68003.0,0.090527]
[1717335346107,2.31799275,68004.0,68003.0,0.090527]
[1717335346304,2.16949986,68004.0,68003.0,0.090527]
[1717335347118,2.31801456,68004.0,68003.0,0.090527]
[1717335347438,2.16949986,68004.0,68003.0,0.090527]
[1717335348521,2.11999986,68004.0,68003.0,0.253227]
[1717335348717,2.16949986,68004.0,68003.0,0.253227]
[1717335348941,2.01999986,68004.0,68003.0,0.253227]
[1717335349160,2.06949986,68004.0,68003.0,0.253227]
[1717335349418,2.01999986,68004.0,68003.0,0.253227]
[1717335349644,2.06949986,68004.0,68003.0,0.253227]
[1717335351228,2.16949986,68004.0,68003.0,0.253227]
[1717335353733,2.06949986,68004.0,68003.0,0.253227]
[1717335353932,2.16949986,68004.0,68003.0,0.253227]
[1717335356935,2.11999986,68004.0,68003.0,0.253227]
[1717335357156,2.16949986,68004.0,68003.0,0.253227]
[1717335357592,2.11999986,68004.0,68003.0,0.253227]
[1717335357817,2.06949986,68004.0,68003.0,0.253227]
[1717335358496,2.16949986,68004.0,68003.0,0.253227]
[1717335360336,2.17076256,68004.0,68003.0,0.252527]
[1717335360539,2.12126256,68004.0,68003.0,0.252527]
[1717335360740,2.17076256,68004.0,68003.0,0.252527]
[1717335362510,2.30287463,68004.0,68003.0,0.252527]
[1717335365315,2.17076256,68004.0,68003.0,0.252527]
[1717335367562,2.02126256,68004.0,68003.0,0.252527]
[1717335367763,2.07076256,68004.0,68003.0,0.252527]
[1717335368968,2.02126256,68004.0,68003.0,0.252527]
[1717335369171,2.07076256,68004.0,68003.0,0.252527]
[1717335369573,1.83126256,68004.0,68003.0,0.252527]
[1717335369778,1.88076256,68004.0,68003.0,0.252527]
[1717335369996,1.75805141,68004.0,68003.0,0.252527]
[1717335370424,1.68405141,68004.0,68003.0,0.252527]
[1717335370829,1.72105141,68004.0,68003.0,0.252527]
[1717335371563,1.65705141,68004.0,68003.0,0.252527]
[1717335371982,1.36295141,68004.0,68003.0,0.252527]
[1717335372436,1.33995141,68004.0,68003.0,0.252527]
[1717335372643,1.26789499,68004.0,68003.0,0.252527]
[1717335372833,1.21839499,68004.0,68003.0,0.252527]
[1717335373133,1.25539499,68004.0,68003.0,0.253527]
[1717335373294,1.01079499,68004.0,68003.0,0.253527]
[1717335374864,1.04934349,68004.0,68003.0,0.253527]
[1717335375420,1.04926951,68004.0,68003.0,0.253527]
[1717335375774,0.98910891,68004.0,68003.0,0.253527]
[1717335376227,0.96709314,68004.0,68003.0,0.253527]
[1717335376442,0.90106041,68004.0,68003.0,0.253527]
[1717335376678,0.94507962,68004.0,68003.0,0.253527]
[1717335376880,0.90106041,68004.0,68003.0,0.253527]
[1717335377082,0.94507961,68004.0,68003.0,0.253527]
[1717335377671,0.94507961,68004.0,68003.0,0.25375673]
[1717335377672,0.63336199,68004.0,68003.0,0.25375673]
[1717335377872,0.58934279,68004.0,68003.0,0.30175673]
[1717335378395,0.1133816,68004.0,68003.0,0.30175673]
[1717335378957,0.0773816,68004.0,68003.0,0.30175673]
[1717335380020,0.0403816,68004.0,68003.0,0.30075673]
[1717335380225,0.0403816,68004.0,68003.0,0.05625673]
[1717335380477,0.0403816,68004.0,68003.0,0.05725673]
[1717335380478,0.036,68004.0,68003.0,0.05725673]
[1717335380812,0.072,68004.0,68003.0,0.29205673]
[1717335380959,0.036,68004.0,68003.0,0.24155673]
[1717335381163,0.036,68004.0,68003.0,0.29105673]
[1717335381361,0.068,68004.0,68003.0,0.29305673]
[1717335382143,0.147026,68015.0,68014.0,0.00022973]
[1717335382355,0.29280391,68015.0,68014.0,0.23402973]
[1717335382557,0.43261678,68015.0,68014.0,0.23402973]
[1717335382791,0.43261678,68015.0,68014.0,0.2574327]
[1717335383420,0.39280391,68015.0,68014.0,0.2574327]
[1717335383648,0.42980391,68015.0,68014.0,0.2584327]
[1717335384089,0.50555359,68015.0,68014.0,0.2594327]
[1717335384323,0.46580391,68015.0,68014.0,0.2594327]
[1717335384809,0.46580391,68015.0,68014.0,0.2614327]
[1717335384810,0.50280391,68015.0,68014.0,0.2614327]
[1717335386112,0.11,68015.0,68014.0,0.3109327]
[1717335386938,0.11,68015.0,68014.0,0.3099327]
[1717335387156,0.11,68015.0,68014.0,0.3089327]
[1717335387157,0.037,68015.0,68014.0,0.3089327]
[1717335387334,0.147001,68027.0,68026.0,0.08042973]
[1717335387511,0.29277891,68027.0,68026.0,0.2502727]
[1717335387927,0.058851,68034.0,68033.0,0.00022973]
[1717335388128,0.29276291,68034.0,68033.0,0.29172973]
[1717335388327,0.29276291,68034.0,68033.0,0.242]
[1717335389401,0.32876291,68034.0,68033.0,0.244]
[1717335389606,0.42876291,68034.0,68033.0,0.2684]
[1717335390337,0.43876291,68034.0,68033.0,0.2714]
[1717335390980,0.41276291,68034.0,68033.0,0.2724]
[1717335391184,0.42976291,68034.0,68033.0,0.2684]
[1717335391830,0.39276291,68034.0,68033.0,0.2664]
[1717335392037,0.39276291,68034.0,68033.0,0.2674]
[1717335392038,0.40676291,68034.0,68033.0,0.2674]
[1717335393715,0.40676291,68034.0,68033.0,0.243]
[1717335397875,0.40676291,68034.0,68033.0,0.24322973]
[1717335398063,0.40676291,68034.0,68033.0,0.243]
[1717335406286,0.44672495,68034.0,68033.0,0.243]
[1717335410895,0.44673983,68034.0,68033.0,0.243]
[1717335411480,0.53073755,68034.0,68033.0,0.243]
[1717335411924,0.53073755,68034.0,68033.0,0.24322973]
[1717335412105,0.53073755,68034.0,68033.0,0.243]
[1717335413442,0.53073755,68034.0,68033.0,0.24322973]
[1717335414728,0.53073755,68034.0,68033.0,0.243]
[1717335415812,0.52338855,68034.0,68033.0,0.26732297]
[1717335418703,0.52338855,68034.0,68033.0,0.001]
[1717335418904,1.10705855,68034.0,68033.0,0.001]
[1717335419153,1.56089041,68034.0,68033.0,0.001]
[1717335419390,1.61897833,68034.0,68033.0,0.001]
[1717335419634,1.7431926,68034.0,68033.0,0.001]
[1717335420092,1.8431926,68034.0,68033.0,0.001]
[1717335420565,1.8531926,68034.0,68033.0,0.004]
[1717335420765,1.72897833,68034.0,68033.0,0.004]
[1717335420971,1.91981425,68034.0,68016.0,0.2353]
[1717335421221,0.147022,68017.0,68016.0,0.2353]
[1717335421489,0.41677455,68017.0,68016.0,0.2353]
[1717335421650,0.147033,68012.0,68010.0,0.23552973]
[1717335421865,0.03997692,68011.0,68010.0,0.23552973]
[1717335422076,0.03997692,68011.0,68010.0,0.2640327]
[1717335422323,0.147033,68012.0,68011.0,0.00022973]
[1717335423948,0.150033,68012.0,68011.0,0.02922973]
[1717335424592,0.150033,68012.0,68011.0,0.029]
[1717335424790,0.29581091,68012.0,68011.0,0.1827]
[1717335425000,0.52205813,68012.0,68011.0,0.1827]
[1717335425212,0.52205813,68012.0,68011.0,0.20915297]
[1717335425213,0.4360353,68012.0,68011.0,0.20915297]
[1717335425456,0.52237547,68012.0,68011.0,0.2093827]
[1717335425667,0.4360353,68012.0,68011.0,0.2093827]
[1717335425868,0.4390353,68012.0,68011.0,0.2193827]
[1717335426298,0.4330353,68012.0,68011.0,0.1803827]
[1717335426469,0.4340353,68012.0,68011.0,0.1853827]
[1717335427840,0.4370353,68012.0,68011.0,0.1863827]
[1717335428036,0.4370353,68012.0,68011.0,0.18615297]
[1717335429263,0.4370353,68012.0,68011.0,0.1597]
[1717335431264,0.4370353,68012.0,68011.0,0.15992973]
[1717335431469,0.4370353,68012.0,68011.0,0.1597]
[1717335432183,0.39681091,68012.0,68011.0,0.1597]
[1717335437001,0.43694877,68012.0,68011.0,0.1597]
[1717335437660,0.43694877,68012.0,68011.0,0.18385297]
[1717335438082,0.43694877,68012.0,68011.0,0.1840827]
[1717335438495,0.43694877,68012.0,68011.0,0.18385297]
[1717335438700,0.43694877,68012.0,68011.0,0.1840827]
[1717335439559,0.43694877,68012.0,68011.0,0.15992973]
[1717335439980,0.251033,68012.0,68011.0,0.20942973]
[1717335440200,0.251033,68012.0,68011.0,0.28812973]
[1717335440201,0.004,68012.0,68011.0,0.28812973]
[1717335440487,0.004,68012.0,68011.0,0.3169427]
[1717335449946,0.004,68012.0,68011.0,0.2674427]
[1717335450356,0.004,68012.0,68011.0,0.3169427]
[1717335453266,0.004,68012.0,68011.0,0.2674427]
[1717335453470,0.004,68012.0,68011.0,0.3169427]
[1717335462029,0.004,68012.0,68011.0,0.46851383]
[1717335462030,0.001,68012.0,68011.0,0.46851383]
[1717335462427,0.004,68012.0,68011.0,0.47751383]
[1717335462997,0.003,68012.0,68011.0,0.47251383]
[1717335463237,0.006,68012.0,68011.0,0.50351383]
[1717335463917,0.006,68012.0,68011.0,0.49451383]
[1717335464112,0.003,68012.0,68011.0,0.49451383]
[1717335464285,0.003,68012.0,68011.0,0.50451383]
[1717335464286,0.006,68012.0,68011.0,0.50451383]
[1717335465025,0.006,68012.0,68011.0,0.45501383]
[1717335465230,0.006,68012.0,68011.0,0.50451383]
[1717335469397,0.006,68012.0,68011.0,0.65154883]
[1717335471284,0.00582309,68012.0,68011.0,0.65154883]
[1717335481246,0.00582309,68012.0,68011.0,0.90654883]
[1717335481695,0.00582309,68012.0,68011.0,0.80654883]
[1717335481898,0.00582309,68012.0,68011.0,0.90654883]
[1717335482076,0.00582309,68012.0,68011.0,0.9505767]
[1717335482303,0.00282309,68012.0,68011.0,0.9405767]
[1717335483445,0.229893,68031.0,68030.0,0.00022973]
[1717335483672,0.51566903,68031.0,68030.0,0.04972973]
[1717335483905,0.13999812,68031.0,68030.0,0.04972973]
[1717335484335,0.13999812,68031.0,68030.0,0.0789927]
[1717335485044,0.1,68031.0,68030.0,0.0789927]
[1717335485406,0.106,68031.0,68030.0,0.0799927]
[1717335486059,0.006,68031.0,68030.0,0.0799927]
[1717335486265,0.106,68031.0,68030.0,0.0799927]
[1717335486804,0.1,68031.0,68030.0,0.0789927]
[1717335487334,0.1,68035.0,68034.0,0.00022973]
[1717335487534,0.2754507,68035.0,68034.0,0.032419]
[1717335488531,0.0803,68039.0,68038.0,0.00022973]
[1717335490772,0.0803,68039.0,68038.0,0.01122973]
[1717335491246,0.1803,68042.0,68041.0,0.00022973]
[1717335491468,0.32607791,68042.0,68041.0,0.00022973]
[1717335491697,0.32607791,68042.0,68041.0,0.0081027]
[1717335492625,0.32907791,68042.0,68041.0,0.0081027]
[1717335493700,0.32907791,68042.0,68041.0,0.0091027]
[1717335495939,0.103,68042.0,68041.0,0.0586027]
[1717335497123,0.103,68042.0,68041.0,0.2958027]
[1717335497344,0.003,68042.0,68041.0,0.2958027]
[1717335498567,0.003,68042.0,68041.0,0.2463027]
[1717335498764,0.003,68042.0,68041.0,0.2958027]
[1717335502067,0.003,68042.0,68041.0,0.0586027]
[1717335502250,0.003,68042.0,68041.0,0.0091027]
[1717335503558,0.003,68042.0,68041.0,0.00122973]
[1717335503764,0.003,68042.0,68041.0,0.001]
[1717335503765,0.38757791,68042.0,68041.0,0.001]
[1717335503943,0.48757791,68042.0,68041.0,0.001]
[1717335504144,0.63454591,68042.0,68041.0,0.001]
[1717335504843,0.63454591,68042.0,68041.0,0.00122973]
[1717335507061,0.003,68042.0,68041.0,0.05072973]
[1717335507260,0.003,68042.0,68041.0,0.07977055]
[1717335509331,0.003,68042.0,68041.0,0.08564865]
[1717335509574,0.003,68042.0,68041.0,0.31357055]
[1717335511533,0.2369,68042.0,68041.0,0.00122973]
[1717335515664,0.2369,68042.0,68039.0,0.0166473]
[1717335516688,0.2339,68042.0,68039.0,0.0166473]
[1717335516887,0.2339,68042.0,68039.0,0.0206473]
[1717335517090,0.380868,68042.0,68039.0,0.0206473]
[1717335517734,0.380868,68042.0,68039.0,0.004]
[1717335517940,0.380868,68042.0,68039.0,0.011]
[1717335518834,0.52664591,68042.0,68039.0,0.011]
[1717335519039,0.146971,68041.0,68039.0,0.011]
[1717335519245,0.146972,68040.0,68039.0,0.011]
[1717335519450,0.17668323,68040.0,68039.0,0.011]
[1717335519961,0.55636114,68040.0,68039.0,0.011]
[1717335520174,0.55636114,68040.0,68039.0,0.004]
[1717335520516,0.14698,68037.0,68031.0,0.0495]
[1717335520659,0.14577791,68036.0,68032.0,0.02833]
[1717335521043,0.11268693,68035.0,68032.0,0.02833]
[1717335521253,0.146987,68033.0,68032.0,0.02833]
[1717335521453,0.146987,68033.0,68029.0,0.0495]
[1717335521653,0.307387,68033.0,68029.0,0.0495]
[1717335521854,0.307387,68033.0,68031.0,0.028]
[1717335522054,0.307387,68033.0,68027.0,0.0495]
[1717335522939,0.146987,68033.0,68027.0,0.0495]
[1717335523965,0.146987,68033.0,68032.0,0.046]
[1717335524407,0.146987,68033.0,68032.0,0.021]
[1717335524627,0.146987,68033.0,68026.0,0.0495]
[1717335524846,0.149987,68033.0,68027.0,0.074]
[1717335525019,0.149987,68033.0,68027.0,0.037]
[1717335525430,0.146987,68033.0,68032.0,0.025]
[1717335525830,0.148987,68033.0,68032.0,0.021]
[1717335528418,0.148987,68033.0,68032.0,0.046]
[1717335545270,0.002,68033.0,68032.0,0.046]
[1717335545626,0.002,68033.0,68032.0,0.34637864]
[1717335545766,0.002,68033.0,68032.0,0.49891106]
[1717335546721,0.002,68033.0,68032.0,0.43941106]
[1717335546940,0.002,68033.0,68032.0,0.48303242]
[1717335547347,0.002,68033.0,68032.0,0.43353242]
[1717335547546,0.002,68033.0,68032.0,0.48303242]
[1717335548149,0.002,68033.0,68032.0,0.43353242]
[1717335548397,0.002,68033.0,68032.0,0.48303242]
[1717335548577,0.002,68033.0,68032.0,0.3305]
[1717335555002,0.002,68033.0,68032.0,0.281]
[1717335557997,0.002,68033.0,68032.0,0.43352973]
[1717335559651,0.002,68033.0,68032.0,0.4818327]
[1717335561327,0.002,68033.0,68032.0,0.43352973]
[1717335566387,0.002,68033.0,68032.0,0.44352973]
[1717335566944,0.002,68033.0,68032.0,0.43352973]
[1717335568215,0.002,68033.0,68032.0,0.48302973]
[1717335568421,0.002,68033.0,68032.0,0.49302973]
[1717335568634,0.002,68033.0,68032.0,0.48302973]
[1717335569286,0.002,68033.0,68032.0,0.49302973]
[1717335569837,0.002,68033.0,68032.0,0.43352973]
[1717335570041,0.002,68033.0,68032.0,0.48302973]
[1717335571864,0.002,68033.0,68032.0,0.94079664]
[1717335572088,0.002,68033.0,68032.0,1.04079664]
[1717335572307,0.002,68033.0,68032.0,1.35827778]
[1717335572507,0.002,68033.0,68032.0,1.49730581]
[1717335572723,0.002,68033.0,68032.0,1.70433979]
[1717335572927,0.002,68033.0,68032.0,1.60433979]
[1717335573177,0.246942,68054.0,68042.0,0.2261]
[1717335573348,0.02913572,68053.0,68047.0,0.0495]
[1717335573825,0.02913572,68053.0,68043.0,0.0383075]
[1717335574038,0.02913572,68053.0,68047.0,0.0495]
[1717335574427,0.02913572,68053.0,68047.0,0.0665]
[1717335574682,0.02913572,68053.0,68047.0,0.09781961]
[1717335574887,0.02913572,68053.0,68047.0,0.08081961]
[1717335575095,0.03013572,68053.0,68047.0,0.08081961]
[1717335575296,0.001,68053.0,68047.0,0.08081961]
[1717335575718,0.0801,68052.0,68047.0,0.03131961]
[1717335575929,0.1536,68051.0,68043.0,0.053]
[1717335576143,0.32587791,68050.0,68043.0,0.053]
[1717335576356,0.0292049,68049.0,68043.0,0.053]
[1717335576573,0.146957,68047.0,68043.0,0.04125]
[1717335576831,0.29273491,68047.0,68043.0,0.09075]
[1717335577248,0.29273491,68047.0,68043.0,0.05975]
[1717335577468,0.07288895,68044.0,68043.0,0.0495]
[1717335577679,0.2337,68038.0,68028.0,0.151]
[1717335577915,0.14577791,68037.0,68029.0,0.15252137]
[1717335578134,0.14577791,68037.0,68030.0,0.04720822]
[1717335578561,0.14577791,68037.0,68027.0,0.0751]
[1717335579859,0.29275591,68037.0,68027.0,0.0751]
[1717335580207,0.29375591,68037.0,68029.0,0.036]
[1717335580615,0.29275591,68037.0,68030.0,0.037]
[1717335581024,0.29375591,68037.0,68030.0,0.037]
[1717335581234,0.29375591,68037.0,68031.0,0.01616]
[1717335581403,0.29275591,68037.0,68031.0,0.01616]
[1717335581805,0.146981,68036.0,68031.0,0.01616]
[1717335582009,0.29275891,68036.0,68031.0,0.01616]
[1717335582215,0.29275891,68036.0,68032.0,0.015726]
[1717335584125,0.29375891,68036.0,68032.0,0.037726]
[1717335584778,0.29375891,68036.0,68032.0,0.069726]
[1717335586827,0.146983,68035.0,68032.0,0.054]
[1717335587067,0.146985,68034.0,68032.0,0.054]
[1717335588055,0.146985,68034.0,68032.0,0.022]
[1717335588246,0.146985,68034.0,68027.0,0.1246]
[1717335588486,0.146985,68034.0,68027.0,0.16863103]
[1717335588709,0.146985,68034.0,68032.0,0.031]
[1717335589897,0.146985,68034.0,68032.0,0.053]
[1717335590282,0.146985,68034.0,68027.0,0.0495]
[1717335590661,0.147985,68034.0,68032.0,0.022]
[1717335591066,0.146985,68034.0,68027.0,0.0495]
[1717335591278,0.146985,68034.0,68032.0,0.031]
[1717335591474,0.147985,68034.0,68032.0,0.031]
[1717335591929,0.147985,68034.0,68032.0,0.052]
[1717335593067,0.146985,68034.0,68032.0,0.052]
[1717335593305,0.147985,68034.0,68032.0,0.052]
[1717335593772,0.146985,68034.0,68032.0,0.052]
[1717335593979,0.147985,68034.0,68032.0,0.064]
[1717335594670,0.147985,68034.0,68032.0,0.07535]
[1717335594897,0.147985,68034.0,68032.0,0.064]
[1717335595109,0.29276491,68033.0,68032.0,0.064]
[1717335595328,0.53256491,68033.0,68032.0,0.064]
[1717335595946,0.61172682,68033.0,68032.0,0.064]
[1717335596168,0.59206491,68033.0,68032.0,0.052]
[1717335596367,0.59206491,68033.0,68032.0,0.064]
[1717335596528,0.59306491,68033.0,68032.0,0.064]
[1717335596732,0.59306491,68033.0,68032.0,0.012]
[1717335597533,0.59306491,68033.0,68032.0,0.033]
[1717335599137,0.72281562,68033.0,68032.0,0.033]
[1717335599543,0.79853631,68033.0,68032.0,0.033]
[1717335599769,0.84157752,68033.0,68032.0,0.021]
[1717335599971,0.147009,68024.0,68019.0,0.162]
[1717335600390,0.147009,68023.0,68019.0,0.162]
[1717335601515,0.147009,68023.0,68019.0,0.197]
[1717335602545,0.147009,68023.0,68020.0,0.03256]
[1717335602740,0.148009,68023.0,68020.0,0.03256]
[1717335603356,0.147009,68023.0,68020.0,0.03256]
[1717335603561,0.147011,68022.0,68020.0,0.03256]
[1717335603769,0.147011,68022.0,68020.0,0.08756]
[1717335604395,0.147011,68022.0,68021.0,0.03706711]
[1717335605617,0.147013,68021.0,68020.0,0.032]
[1717335606136,0.147013,68021.0,68020.0,0.055]
[1717335606423,0.147013,68021.0,68020.0,0.023]
[1717335606635,0.147013,68021.0,68019.0,0.162]
[1717335606848,0.148013,68021.0,68020.0,0.023]
[1717335607058,0.148013,68021.0,68020.0,0.05436]
[1717335607268,0.148013,68021.0,68020.0,0.08636]
[1717335607491,0.148013,68021.0,68020.0,0.055]
[1717335608167,0.148013,68021.0,68020.0,0.023]
[1717335608596,0.147015,68020.0,68019.0,0.162]
[1717335608825,0.0809,68026.0,68018.0,0.0791]
[1717335609031,0.001,68021.0,68019.0,0.026]
[1717335609481,0.147017,68019.0,68018.0,0.0791]
[1717335609709,0.147019,68018.0,68016.0,0.1508]
[1717335609926,0.147019,68018.0,68016.0,0.2323]
[1717335610162,0.147019,68018.0,67998.0,0.06594121]
[1717335610163,0.001,68020.0,68010.0,0.0815]
[1717335610396,0.224915,68020.0,68019.0,0.035]
[1717335610633,0.147024,68016.0,68013.0,0.1508]
[1717335610846,0.147024,68016.0,68014.0,0.02818]
[1717335612624,0.148024,68016.0,68014.0,0.06518]
[1717335613294,0.148024,68016.0,68014.0,0.10218]
[1717335615314,0.147024,68016.0,68014.0,0.06518]
[1717335615539,0.0779,68020.0,68014.0,0.06518]
[1717335615540,0.147026,68015.0,68014.0,0.06518]
[1717335615705,0.147026,68015.0,68014.0,0.08418]
[1717335616100,0.147026,68015.0,68014.0,0.04718]
[1717335616331,0.0779,68020.0,68014.0,0.04718]
[1717335616332,0.1274,68020.0,68014.0,0.029]
[1717335616740,0.001,68015.0,68014.0,0.019]
[1717335617115,0.0779,68020.0,68014.0,0.029]
[1717335617377,0.14703,68014.0,68010.0,0.2323]
[1717335617590,0.14703,68014.0,68010.0,0.26048]
[1717335617797,0.147031,68013.0,68010.0,0.26048]
[1717335618816,0.00680961,68012.0,68010.0,0.26048]
[1717335619398,0.00680961,68012.0,68010.0,0.29348]
[1717335619605,0.00680961,68012.0,68010.0,0.33048]
[1717335619806,0.00680961,68012.0,68011.0,0.037998]
[1717335620379,0.00980961,68012.0,68011.0,0.037998]
[1717335621135,0.00880961,68012.0,68011.0,0.037998]
[1717335621761,0.00680961,68012.0,68011.0,0.037998]
[1717335621961,0.00680961,68012.0,68011.0,0.067998]
[1717335621962,0.00880961,68012.0,68011.0,0.067998]
[1717335622425,0.15684161,68012.0,68011.0,0.104998]
[1717335622634,0.15684161,68012.0,68011.0,0.067]
[1717335624142,0.23894161,68012.0,68011.0,0.067]
[1717335624970,0.38471952,68012.0,68011.0,0.067]
[1717335625194,0.77878452,68012.0,68011.0,0.067]
[1717335625370,0.77878452,68012.0,68011.0,0.037]
[1717335625371,0.77678452,68012.0,68011.0,0.037]
[1717335625589,0.80642937,68012.0,68011.0,0.053]
[1717335625829,0.80742937,68012.0,68011.0,0.053]
[1717335626237,0.80742937,68012.0,68004.0,0.1624]
[1717335626238,0.147048,68005.0,68004.0,0.1624]
[1717335627215,0.55884291,68012.0,68004.0,0.1624]
[1717335627216,0.147039,68009.0,68004.0,0.1624]
[1717335627426,0.26477791,68012.0,68011.0,0.2287]
[1717335627427,0.119,68012.0,68011.0,0.2287]
[1717335627632,0.119,68012.0,68011.0,0.2782]
[1717335628376,0.1,68012.0,68011.0,0.2782]
[1717335628585,0.1,68012.0,68011.0,0.30702]
[1717335628586,0.247032,68012.0,68011.0,0.30702]
[1717335629026,0.259032,68012.0,68011.0,0.31002]
[1717335629247,0.247032,68012.0,68011.0,0.30702]
[1717335629453,0.248032,68012.0,68011.0,0.32102]
[1717335629667,0.249032,68012.0,68011.0,0.34402]
[1717335630354,0.25598055,68012.0,68011.0,0.34402]
[1717335631700,0.249032,68012.0,68011.0,0.34402]
[1717335635299,0.149032,68012.0,68011.0,0.34402]
[1717335640287,0.149032,68012.0,68011.0,0.35402]
[1717335641385,0.149032,68012.0,68011.0,0.34402]
[1717335647407,0.149032,68012.0,68011.0,0.35402]
[1717335652001,0.002,68012.0,68011.0,0.35402]
[1717335653450,0.002,68012.0,68011.0,0.12532]
[1717335653663,0.2422,68012.0,68011.0,0.037]
[1717335653875,0.002,68012.0,68011.0,0.037]
[1717335654087,0.002,68012.0,68011.0,0.0865]
[1717335661010,0.002,68012.0,68011.0,0.037]
[1717335661203,0.389232,68012.0,68011.0,0.037]
[1717335661444,0.53500991,68012.0,68011.0,0.037]
[1717335661674,0.56469453,68012.0,68011.0,0.037]
[1717335677586,0.40519453,68012.0,68011.0,0.037]
[1717335678062,0.37550991,68012.0,68011.0,0.037]
[1717335678470,0.40512124,68012.0,68011.0,0.037]
[1717335682230,0.32442124,68012.0,68011.0,0.037]
[1717335687808,0.29480991,68012.0,68011.0,0.037]
[1717335688134,0.3243143,68012.0,68011.0,0.037]
[1717335691091,0.29480991,68012.0,68011.0,0.037]
[1717335691309,0.002,68012.0,68011.0,0.29713]
[1717335691520,0.002,68012.0,68011.0,0.48748164]
[1717335691676,0.002,68012.0,68011.0,0.63451664]
[1717335691881,0.002,68012.0,68011.0,0.71080054]
[1717335692285,0.002,68012.0,68011.0,0.63451664]
[1717335693167,0.247002,68026.0,68019.0,0.2484]
[1717335693473,0.02916428,68025.0,68022.0,0.0495]
[1717335693955,0.02916428,68025.0,68024.0,0.0495]
[1717335694160,0.146994,68030.0,68024.0,0.0595]
[1717335694359,0.02911973,68029.0,68025.0,0.02979]
[1717335695093,0.146994,68030.0,68025.0,0.02979]
[1717335696226,0.146994,68030.0,68026.0,0.0495]
[1717335697183,0.006,68029.0,68026.0,0.0495]
[1717335697392,0.006,68029.0,68026.0,0.0585]
[1717335697610,0.146994,68030.0,68027.0,0.034069]
[1717335698768,0.149994,68030.0,68027.0,0.034069]
[1717335700247,0.149994,68030.0,68027.0,0.040069]
[1717335705834,0.149994,68030.0,68028.0,0.0495]
[1717335706265,0.149994,68030.0,68027.0,0.040069]
[1717335706603,0.149994,68030.0,68028.0,0.0346969]
[1717335707024,0.146994,68030.0,68028.0,0.0346969]
[1717335707380,0.152994,68030.0,68028.0,0.0376969]
[1717335708777,0.152994,68030.0,68028.0,0.1202969]
[1717335709423,0.152994,68030.0,68029.0,0.1623]
[1717335709630,0.252994,68030.0,68029.0,0.1623]
[1717335710445,0.252994,68030.0,68029.0,0.1607]
[1717335711270,0.146994,68030.0,68029.0,0.2102]
[1717335711529,0.146986,68034.0,68030.0,0.0926]
[1717335711741,0.1,68033.0,68031.0,0.07978]
[1717335713343,0.1,68033.0,68031.0,0.08578]
[1717335714587,0.103,68033.0,68031.0,0.08578]
[1717335714785,0.003,68033.0,68032.0,0.033808]
[1717335715795,0.146986,68034.0,68032.0,0.033808]
[1717335715796,0.146977,68038.0,68035.0,0.1623]
[1717335715982,0.146977,68038.0,68037.0,0.0495]
[1717335716183,0.246977,68038.0,68037.0,0.0495]
[1717335717212,0.246977,68038.0,68035.0,0.1623]
[1717335717213,0.246977,68038.0,68035.0,0.2118]
[1717335717450,0.1,68037.0,68035.0,0.2456208]
[1717335717792,0.1,68037.0,68035.0,0.2556208]
[1717335717995,0.1,68037.0,68036.0,0.01]
[1717335718632,0.106,68037.0,68036.0,0.01]
[1717335719172,0.1,68037.0,68035.0,0.2456208]
[1717335719374,0.1,68037.0,68036.0,0.03282208]
[1717335719730,0.107,68037.0,68036.0,0.03282208]
[1717335719934,0.107,68037.0,68036.0,0.03142208]
[1717335720695,0.1,68037.0,68036.0,0.03142208]
[1717335720894,0.1,68037.0,68036.0,0.03442208]
[1717335721136,0.106,68037.0,68036.0,0.03442208]
[1717335721684,0.1,68037.0,68036.0,0.03442208]
[1717335721900,0.07288895,68047.0,68036.0,0.03442208]
[1717335721901,0.1615,68052.0,68039.0,0.2351]
[1717335722129,0.1748246,68051.0,68048.0,0.0495]
[1717335722342,0.1615,68052.0,68048.0,0.0495]
[1717335722343,0.146948,68052.0,68048.0,0.0495]
[1717335722548,0.146948,68052.0,68049.0,0.02846]
[1717335723211,0.1,68051.0,68049.0,0.02846]
[1717335724303,0.1,68051.0,68049.0,0.03146]
[1717335725602,0.106,68051.0,68049.0,0.03146]
[1717335726410,0.106,68051.0,68049.0,0.08096]
[1717335726655,0.106,68051.0,68050.0,0.031606]
[1717335726870,0.006,68051.0,68050.0,0.031606]
[1717335727515,0.183,68059.0,68050.0,0.031606]
[1717335727516,0.1814,68059.0,68050.0,0.031606]
[1717335727741,0.17476287,68058.0,68050.0,0.031606]
[1717335727956,0.12898496,68057.0,68051.0,0.0322206]
[1717335728178,0.24577791,68057.0,68051.0,0.0322206]
[1717335728568,0.14694,68055.0,68051.0,0.0322206]
[1717335728743,0.1,68054.0,68051.0,0.0322206]
[1717335730161,0.1,68054.0,68050.0,0.009]
[1717335730601,0.1,68054.0,68051.0,0.006]
[1717335731187,0.14694,68055.0,68051.0,0.006]
[1717335731188,0.14694,68055.0,68052.0,0.2397]
[1717335731407,0.14694,68055.0,68053.0,0.0495]
[1717335731613,0.14694,68055.0,68052.0,0.2397]
[1717335731807,0.14694,68055.0,68054.0,0.0495]